bitfinex/quotes_SOLUSD_20240702
["timestamp","ask_amount","ask_price","bid_price","bid_amount"]
[1719927989116,1.66126929,150.52,150.4,146.67]
[1719927989283,1.66111264,150.51,150.4,146.67]
[1719927989914,1.6611952,150.52,150.41,20.0]
[1719927990094,15.103,150.53,150.43,100.0]
[1719927990409,15.103,150.53,150.44,20.0]
[1719927990904,1.66101739,150.52,150.44,20.0]
[1719927991123,15.103,150.53,150.42,20.0]
[1719927991124,1.66120105,150.51,150.42,20.0]
[1719927991304,1.66120105,150.51,150.41,20.0]
[1719927991498,1.66120105,150.51,150.4,46.67]
[1719927992343,1.66120105,150.51,150.36,46.67]
[1719927992620,1.66120105,150.51,150.37,200.0]
[1719927992825,1.66120105,150.51,150.39,100.0]
[1719927993121,1.66127952,150.52,150.39,100.0]
[1719927993294,1.66131698,150.51,150.38,46.67]
[1719927993491,8.30531698,150.51,150.38,46.67]
[1719927993827,1.66131698,150.51,150.38,46.67]
[1719927994026,1.66131698,150.51,150.39,120.0]
[1719927994203,1.66131698,150.51,150.39,20.0]
[1719927994403,6.6446,150.5,150.38,46.67]
[1719927994619,1.66168577,150.49,150.38,46.67]
[1719927994939,1.66168215,150.49,150.38,46.67]
[1719927995232,1.66148212,150.52,150.39,100.0]
[1719927995526,1.66123917,150.51,150.39,200.0]
[1719927995740,1.66123917,150.51,150.39,100.0]
[1719927995904,1.66123917,150.51,150.38,46.67]
[1719927995905,1.66123917,150.51,150.4,20.0]
[1719927996107,1.66123917,150.51,150.39,20.0]
[1719927996438,6.6446,150.5,150.39,20.0]
[1719927996601,1.66167045,150.49,150.39,20.0]
[1719927996933,15.103,150.53,150.39,20.0]
[1719927996934,1.66165228,150.48,150.39,20.0]
[1719927997226,1.66184051,150.47,150.32,146.67]
[1719927997432,1.66184051,150.47,150.32,46.67]
[1719927997734,6.6478,150.43,150.29,650.7]
[1719927997906,1.66243495,150.42,150.3,200.0]
[1719927998097,6.6472,150.44,150.28,246.67]
[1719927998296,1.66245844,150.43,150.28,146.67]
[1719927998494,1.66245116,150.42,150.3,200.0]
[1719927998705,1.66231233,150.45,150.32,146.67]
[1719927998924,1.66231233,150.45,150.33,20.0]
[1719927999515,1.66205045,150.45,150.34,100.0]
[1719927999729,1.66205045,150.45,150.35,20.0]
[1719927999940,1.66205045,150.45,150.33,20.0]
[1719928000909,8.29870036,150.46,150.34,200.0]
[1719928001125,6.6367,150.46,150.36,100.0]
[1719928001328,6.6367,150.46,150.37,20.0]
[1719928002820,1.6618282,150.45,150.37,20.0]
[1719928003224,1.6618282,150.45,150.32,46.67]
[1719928003225,1.6618282,150.45,150.33,220.0]
[1719928003815,1.6618282,150.45,150.35,100.0]
[1719928004021,6.6367,150.46,150.36,20.0]
[1719928004334,6.6367,150.46,150.39,100.0]
[1719928004637,1.66174183,150.51,150.4,20.0]
[1719928005008,6.6445,150.5,150.4,20.0]
[1719928005214,1.66155224,150.5,150.4,20.0]
[1719928005433,1.66135887,150.52,150.41,100.0]
[1719928005639,1.66120198,150.51,150.42,20.0]
[1719928006223,21.6757,150.53,150.42,20.0]
[1719928006653,21.6757,150.53,150.43,46.67]
[1719928006820,21.6757,150.53,150.44,20.0]
[1719928007018,21.6757,150.53,150.45,100.0]
[1719928007232,21.6757,150.53,150.46,20.0]
[1719928007828,21.6757,150.53,150.44,20.0]
[1719928008033,21.6757,150.53,150.44,120.0]
[1719928009045,21.6757,150.53,150.44,20.0]
[1719928010119,0.8404783,150.57,150.45,200.0]
[1719928010432,0.8404783,150.57,150.46,20.0]
[1719928010740,2.5010889,150.57,150.46,20.0]
[1719928011123,0.8404783,150.57,150.47,100.0]
[1719928011318,0.8404783,150.57,150.48,20.0]
[1719928011524,2.50091026,150.57,150.48,20.0]
[1719928011726,0.8404783,150.57,150.48,20.0]
[1719928012647,0.8404783,150.57,150.49,100.0]
[1719928012839,0.8404783,150.57,150.5,20.0]
[1719928014223,0.8404783,150.57,150.48,20.0]
[1719928015035,0.8404783,150.57,150.49,100.0]
[1719928015345,0.8404783,150.57,150.5,20.0]
[1719928015827,0.8404783,150.57,150.48,20.0]
[1719928016444,0.8404783,150.57,150.5,100.0]
[1719928016649,0.8404783,150.57,150.51,20.0]
[1719928017377,0.8404783,150.57,150.49,20.0]
[1719928017855,0.8404783,150.57,150.47,46.67]
[1719928018360,0.8404783,150.57,150.47,100.0]
[1719928019052,0.8404783,150.57,150.49,200.0]
[1719928019255,0.8404783,150.57,150.5,20.0]
[1719928020160,0.8404783,150.57,150.53,100.0]
[1719928020329,0.8404783,150.57,150.54,20.0]
[1719928021173,0.8404783,150.57,150.52,20.0]
[1719928021467,0.8404783,150.57,150.53,100.0]
[1719928021649,0.8404783,150.57,150.54,20.0]
[1719928022364,0.8404783,150.57,150.52,20.0]
[1719928022567,0.8404783,150.57,150.53,100.0]
[1719928022869,0.8404783,150.57,150.54,20.0]
[1719928023365,7.83e-05,150.57,150.55,100.0]
[1719928023758,7.83e-05,150.57,150.56,20.0]
[1719928024334,7.83e-05,150.57,150.54,20.0]
[1719928024771,7.83e-05,150.57,150.52,20.0]
[1719928025771,7.83e-05,150.57,150.53,100.0]
[1719928025953,7.83e-05,150.57,150.54,20.0]
[1719928026342,7.83e-05,150.57,150.55,100.0]
[1719928026544,7.83e-05,150.57,150.56,20.0]
[1719928027079,7.83e-05,150.57,150.54,20.0]
[1719928027238,7.83e-05,150.57,150.52,20.0]
[1719928027440,7.83e-05,150.57,150.46,6.27567336]
[1719928027668,7.83e-05,150.57,150.45,146.67]
[1719928028164,7.83e-05,150.57,150.48,100.0]
[1719928028974,7.83e-05,150.57,150.5,100.0]
[1719928029138,7.83e-05,150.57,150.51,20.0]
[1719928029343,7.83e-05,150.57,150.49,20.0]
[1719928029753,7.83e-05,150.57,150.49,100.0]
[1719928029956,7.83e-05,150.57,150.5,20.0]
[1719928030476,7.83e-05,150.57,150.49,100.0]
[1719928030781,7.83e-05,150.57,150.5,20.0]
[1719928030949,7.83e-05,150.57,150.48,120.0]
[1719928030950,7.83e-05,150.57,150.48,20.0]
[1719928031352,7.83e-05,150.57,150.49,100.0]
[1719928031657,7.83e-05,150.57,150.5,20.0]
[1719928031872,7.83e-05,150.57,150.48,20.0]
[1719928032975,8.30204545,150.57,150.43,100.0]
[1719928033294,23.0771,150.54,150.4,159.8657]
[1719928033447,8.30486196,150.53,150.4,59.8657]
[1719928033645,1.66126196,150.53,150.4,59.8657]
[1719928033845,1.66126196,150.53,150.4,38.19]
[1719928034471,8.30446196,150.53,150.4,38.19]
[1719928034677,6.6197,150.51,150.4,38.19]
[1719928034872,1.6613414,150.5,150.41,20.0]
[1719928035068,1.6613414,150.5,150.36,46.82829273]
[1719928035294,1.6613414,150.5,150.33,260.0]
[1719928035451,1.6613414,150.5,150.33,360.0]
[1719928035651,6.645,150.49,150.33,360.0]
[1719928035968,1.66191366,150.48,150.33,260.0]
[1719928036147,1.66191366,150.48,150.36,100.0]
[1719928036551,1.66191366,150.48,150.33,266.645]
[1719928036752,8.30799268,150.47,150.33,266.645]
[1719928036968,8.30799268,150.47,150.33,260.0]
[1719928037349,6.6472,150.44,150.33,260.0]
[1719928037554,15.5641,150.42,150.33,260.0]
[1719928037750,1.6623865,150.41,150.28,6.27567336]
[1719928038177,1.6623865,150.41,150.29,100.0]
[1719928038481,1.6623865,150.41,150.27,163.4018]
[1719928038782,15.5641,150.42,150.3,100.0]
[1719928039184,15.5641,150.42,150.32,100.0]
[1719928039391,15.5641,150.42,150.34,100.0]
[1719928039551,15.5641,150.42,150.35,20.0]
[1719928039926,18.14377785,150.48,150.36,100.0]
[1719928040060,16.4818,150.48,150.37,20.0]
[1719928040260,16.4818,150.48,150.38,100.0]
[1719928040587,16.4818,150.48,150.39,20.0]
[1719928040785,16.4818,150.48,150.39,120.0]
[1719928041274,16.4818,150.48,150.41,100.0]
[1719928041464,6.6197,150.51,150.42,20.0]
[1719928041671,6.6197,150.51,150.43,200.0]
[1719928041977,16.1777,150.54,150.45,100.0]
[1719928042166,16.1777,150.54,150.46,20.0]
[1719928042358,16.1777,150.54,150.47,100.0]
[1719928042554,6.5792,150.57,150.48,20.0]
[1719928042866,6.5792,150.57,150.49,100.0]
[1719928043183,6.5792,150.57,150.5,20.0]
[1719928043474,6.5792,150.57,150.48,20.0]
[1719928043684,6.5792,150.57,150.46,20.0]
[1719928043884,1.66054819,150.56,150.46,20.0]
[1719928044099,6.6423,150.55,150.46,20.0]
[1719928044265,1.66109252,150.54,150.4,406.68]
[1719928044459,1.66109252,150.54,150.4,146.68]
[1719928044886,1.6610189,150.56,150.43,100.0]
[1719928045082,1.6610189,150.56,150.41,100.0]
[1719928045290,1.6610189,150.56,150.4,46.68]
[1719928045487,6.6426,150.55,150.4,46.68]
[1719928045695,8.30388758,150.54,150.4,46.68]
[1719928046389,1.66118758,150.54,150.4,46.68]
[1719928046695,1.6613203,150.53,150.4,46.68]
[1719928047095,1.6613203,150.53,150.41,20.0]
[1719928047266,1.6613203,150.53,150.37,100.0]
[1719928047603,1.6613203,150.53,150.39,100.0]
[1719928047885,1.66153837,150.52,150.36,46.68]
[1719928048097,23.42568546,150.51,150.36,46.68]
[1719928048300,6.6445,150.5,150.35,206.27567336]
[1719928048594,8.30679504,150.49,150.36,20.0]
[1719928048794,1.66179506,150.48,150.35,20.0]
[1719928049674,1.66179506,150.48,150.35,120.0]
[1719928049880,1.66178817,150.49,150.37,100.0]
[1719928050167,15.12,150.51,150.38,20.0]
[1719928050168,1.66156619,150.48,150.38,20.0]
[1719928050477,1.66156619,150.48,150.35,120.0]
[1719928050478,1.66166778,150.5,150.35,120.0]
[1719928050684,15.12,150.51,150.41,100.0]
[1719928050865,16.78130992,150.51,150.42,20.0]
[1719928051061,15.12,150.51,150.42,120.0]
[1719928051268,15.12,150.51,150.42,20.0]
[1719928051497,15.12,150.51,150.41,20.0]
[1719928052982,1.66118808,150.5,150.4,46.68]
[1719928053184,1.66118808,150.5,150.35,6.89822892]
[1719928053494,6.6451,150.49,150.35,6.89822892]
[1719928053693,1.66179552,150.48,150.34,360.0]
[1719928053995,1.66179552,150.48,150.34,100.0]
[1719928054878,1.66179552,150.48,150.32,454.161585]
[1719928054879,6.0945,150.47,150.32,163.461585]
[1719928055080,1.6620521,150.46,150.32,46.68]
[1719928055380,1.66212712,150.45,150.31,6.89822892]
[1719928055685,6.6476,150.43,150.29,260.0]
[1719928055891,1.66242386,150.42,150.29,260.0]
[1719928056990,1.66242066,150.41,150.29,260.0]
[1719928057401,6.6474,150.44,150.29,260.0]
[1719928057585,8.31006073,150.43,150.29,260.0]
[1719928057786,1.66245507,150.42,150.29,260.0]
[1719928058578,15.4261,150.41,150.28,100.0]
[1719928058779,6.6495,150.39,150.27,6.6476]
[1719928058985,15.4261,150.41,150.27,6.6476]
[1719928058986,1.66288652,150.38,150.27,6.6476]
[1719928059197,1.6626505,150.4,150.27,6.6476]
[1719928059504,1.66279283,150.39,150.27,6.6476]
[1719928059801,1.66279283,150.39,150.26,100.0]
[1719928060008,1.66279283,150.39,150.27,20.0]
[1719928060188,1.66279283,150.39,150.24,35.4261]
[1719928060778,1.66279283,150.39,150.24,20.0]
[1719928060779,6.0136,150.38,150.24,20.0]
[1719928061002,8.31357237,150.37,150.24,19.5]
[1719928061200,8.31357237,150.37,150.23,306.79]
[1719928061201,6.6508,150.36,150.23,260.0]
[1719928061392,1.66307237,150.37,150.23,260.0]
[1719928061393,1.66343893,150.35,150.23,260.0]
[1719928062208,1.66343893,150.35,150.23,460.0]
[1719928062385,1.66293892,150.37,150.25,200.0]
[1719928062698,6.0136,150.38,150.25,200.0]
[1719928062699,6.0136,150.38,150.27,100.0]
[1719928063009,1.66269856,150.37,150.28,20.0]
[1719928063186,6.0136,150.38,150.26,20.0]
[1719928063386,1.66265048,150.37,150.26,20.0]
[1719928063807,1.66265048,150.37,150.24,20.0]
[1719928064116,6.6515,150.35,150.22,219.69757202]
[1719928064315,1.6632517,150.34,150.22,212.7993431]
[1719928064499,8.3148517,150.34,150.22,212.7993431]
[1719928064701,1.6632517,150.34,150.22,212.7993431]
[1719928065289,6.6523,150.33,150.22,212.7993431]
[1719928065488,8.31621543,150.32,150.22,212.7993431]
[1719928065905,1.66371543,150.32,150.22,212.7993431]
[1719928066299,1.66344993,150.36,150.22,212.7993431]
[1719928066604,1.66344993,150.35,150.22,312.7993431]
[1719928066787,1.66300686,150.37,150.24,100.0]
[1719928066983,1.66300686,150.37,150.25,20.0]
[1719928068010,6.0136,150.38,150.27,100.0]
[1719928068208,6.0136,150.38,150.28,20.0]
[1719928068401,1.66262082,150.37,150.28,20.0]
[1719928068711,6.0136,150.38,150.28,20.0]
[1719928068712,6.0136,150.38,150.28,120.0]
[1719928069090,6.0136,150.38,150.28,158.32]
[1719928069721,6.3369,150.43,150.33,100.0]
[1719928069925,6.3369,150.43,150.34,20.0]
[1719928070312,6.3369,150.43,150.35,100.0]
[1719928070610,6.3369,150.43,150.36,20.0]
[1719928070796,15.4127,150.48,150.37,100.0]
[1719928070998,15.4127,150.48,150.38,20.0]
[1719928071687,15.4127,150.48,150.39,100.0]
[1719928072006,15.4127,150.48,150.4,20.0]
[1719928073110,15.4127,150.48,150.38,20.0]
[1719928073910,17.07415263,150.48,150.38,20.0]
[1719928074122,23.71985263,150.48,150.37,20.0]
[1719928074304,23.71985263,150.48,150.36,20.0]
[1719928074491,17.07415263,150.48,150.36,20.0]
[1719928075118,6.6458,150.47,150.36,20.0]
[1719928075416,1.66181848,150.46,150.36,20.0]
[1719928075716,1.66181848,150.47,150.36,20.0]
[1719928075908,17.07432876,150.48,150.36,20.0]
[1719928076300,17.07432876,150.48,150.34,20.0]
[1719928076500,6.6466,150.46,150.33,6.89822892]
[1719928076699,8.30883492,150.45,150.33,6.89822892]
[1719928076910,6.6479,150.43,150.3,100.0]
[1719928077215,1.66229533,150.42,150.3,100.0]
[1719928077463,1.66225409,150.43,150.32,100.0]
[1719928077619,1.66214346,150.45,150.32,100.0]
[1719928077796,1.66214346,150.45,150.32,200.0]
[1719928077993,1.66214346,150.45,150.34,100.0]
[1719928078198,1.66194371,150.47,150.34,100.0]
[1719928078411,8.30774371,150.47,150.35,20.0]
[1719928078824,1.66194371,150.47,150.36,100.0]
[1719928079004,1.66194371,150.47,150.37,20.0]
[1719928079324,15.4127,150.48,150.37,20.0]
[1719928079524,17.07432968,150.48,150.37,20.0]
[1719928079699,15.4127,150.48,150.37,20.0]
[1719928079901,15.4127,150.48,150.38,100.0]
[1719928080118,15.4127,150.48,150.39,20.0]
[1719928080319,15.4127,150.48,150.42,100.0]
[1719928080621,6.6086,150.49,150.43,20.0]
[1719928081126,22.2834,150.54,150.45,100.0]
[1719928081309,22.2834,150.54,150.46,20.0]
[1719928083519,22.2834,150.54,150.44,20.0]
[1719928083936,22.2834,150.54,150.46,100.0]
[1719928084222,22.2834,150.54,150.47,20.0]
[1719928084414,22.2834,150.54,150.44,120.0]
[1719928084614,1.66069402,150.53,150.39,100.0]
[1719928085015,8.30419402,150.53,150.39,100.0]
[1719928085600,6.6448,150.5,150.37,413.62822892]
[1719928085799,6.6448,150.5,150.36,390.7]
[1719928085800,6.6457,150.48,150.36,390.7]
[1719928086019,16.6095,150.52,150.36,390.7]
[1719928086020,1.66173824,150.47,150.36,390.7]
[1719928086232,6.6464,150.46,150.36,390.7]
[1719928086406,8.30866121,150.45,150.36,390.7]
[1719928086608,1.661914,150.49,150.36,390.7]
[1719928086808,1.66179827,150.48,150.36,390.7]
[1719928087028,1.66165035,150.52,150.36,590.7]
[1719928087211,1.66163211,150.51,150.36,490.7]
[1719928087417,6.6456,150.48,150.37,20.0]
[1719928087718,1.66179093,150.47,150.37,20.0]
[1719928087918,1.66179713,150.51,150.37,20.0]
[1719928088120,8.30599713,150.51,150.37,20.0]
[1719928088310,6.6446,150.5,150.37,20.0]
[1719928088505,1.66160814,150.49,150.37,20.0]
[1719928088729,1.66150802,150.49,150.38,100.0]
[1719928089035,8.30500802,150.53,150.39,20.0]
[1719928089402,1.66150802,150.53,150.4,100.0]
[1719928089607,8.30470802,150.53,150.41,20.0]
[1719928089935,1.66150802,150.53,150.42,100.0]
[1719928090116,23.94433515,150.54,150.43,20.0]
[1719928090522,22.2834,150.54,150.46,100.0]
[1719928090743,22.2834,150.54,150.47,20.0]
[1719928091936,1.66061543,150.58,150.47,120.0]
[1719928092124,7.79389102,150.59,150.48,100.0]
[1719928092317,7.79389102,150.59,150.49,20.0]
[1719928093619,14.43469102,150.59,150.47,20.0]
[1719928093818,7.79389102,150.59,150.47,20.0]
[1719928094033,7.79389102,150.59,150.45,20.0]
[1719928094411,6.6415,150.57,150.45,20.0]
[1719928094610,6.643,150.54,150.45,20.0]
[1719928094810,1.66096523,150.53,150.4,38.2]
[1719928095046,6.6427,150.54,150.4,38.2]
[1719928095215,1.66110963,150.53,150.41,100.0]
[1719928095536,1.66110659,150.54,150.43,100.0]
[1719928095720,6.6418,150.57,150.41,100.0]
[1719928095721,1.66098686,150.56,150.41,100.0]
[1719928095923,1.66098686,150.56,150.41,200.0]
[1719928096221,1.66098686,150.56,150.43,100.0]
[1719928096422,8.30278686,150.56,150.41,100.0]
[1719928096633,6.6428,150.54,150.42,20.0]
[1719928096822,1.66104724,150.53,150.42,20.0]
[1719928097020,8.30424724,150.53,150.41,20.0]
[1719928097225,1.66116371,150.52,150.41,20.0]
[1719928097443,1.66120994,150.51,150.41,20.0]
[1719928097620,8.30470336,150.53,150.41,20.0]
[1719928097947,6.644,150.51,150.36,100.0]
[1719928098243,6.0106,150.48,150.36,100.0]
[1719928098420,7.67225145,150.48,150.36,100.0]
[1719928099221,7.67225145,150.48,150.37,20.0]
[1719928099964,7.67225145,150.48,150.33,200.0]
[1719928100852,7.67225145,150.48,150.35,100.0]
[1719928101015,7.67225145,150.48,150.33,200.0]
[1719928101213,7.67225145,150.48,150.31,266.89822892]
[1719928101214,45.0,150.47,150.34,20.0]
[1719928101433,1.66222116,150.46,150.32,20.0]
[1719928101648,1.66208176,150.45,150.34,100.0]
[1719928101853,7.13644448,150.48,150.37,100.0]
[1719928102027,7.13644448,150.48,150.38,20.0]
[1719928102532,6.0106,150.48,150.39,100.0]
[1719928102723,6.0106,150.48,150.4,20.0]
[1719928102922,6.0106,150.48,150.41,100.0]
[1719928103148,16.5972,150.49,150.43,100.0]
[1719928103449,6.3865,150.53,150.44,20.0]
[1719928104138,1.66089718,150.52,150.44,20.0]
[1719928104350,1.66089718,150.52,150.41,20.0]
[1719928104525,8.30459718,150.52,150.41,20.0]
[1719928104721,1.66116362,150.51,150.41,20.0]
[1719928104930,8.30526362,150.51,150.38,20.0]
[1719928105931,6.6445,150.5,150.38,20.0]
[1719928106125,6.6454,150.48,150.34,263.3372]
[1719928106325,1.66168316,150.47,150.34,46.74]
[1719928106527,8.30748316,150.47,150.34,53.3854]
[1719928106726,1.66177995,150.46,150.34,153.3854]
[1719928106949,1.66183414,150.45,150.34,46.74]
[1719928107153,1.66183414,150.45,150.32,100.0]
[1719928108033,18.2739407,150.44,150.33,20.0]
[1719928108449,16.6121,150.44,150.33,120.0]
[1719928108635,16.6121,150.44,150.35,100.0]
[1719928108836,16.6121,150.44,150.36,20.0]
[1719928111354,22.9949,150.53,150.37,100.0]
[1719928111355,15.0122,150.5,150.37,100.0]
[1719928111654,1.66140571,150.49,150.38,20.0]
[1719928111840,1.66140571,150.49,150.37,100.0]
[1719928112046,1.66140571,150.49,150.38,20.0]
[1719928112363,1.66148952,150.48,150.38,20.0]
[1719928112529,1.66148952,150.48,150.35,100.0]
[1719928112530,1.66148952,150.48,150.36,20.0]
[1719928113036,8.30698952,150.48,150.36,20.0]
[1719928113640,1.66148952,150.48,150.35,120.0]
[1719928114042,1.66171376,150.49,150.37,100.0]
[1719928114242,21.6568,150.5,150.38,20.0]
[1719928114243,15.0122,150.5,150.38,20.0]
[1719928114453,1.66136952,150.49,150.38,20.0]
[1719928115157,1.66141512,150.48,150.38,20.0]
[1719928115345,1.66141512,150.48,150.35,20.0]
[1719928115653,8.30691512,150.48,150.35,20.0]
[1719928116060,1.66141512,150.48,150.35,20.0]
[1719928116241,1.66176746,150.47,150.35,120.0]
[1719928116445,1.66164124,150.49,150.35,120.0]
[1719928116655,1.66154581,150.48,150.35,120.0]
[1719928118131,1.66164648,150.49,150.38,100.0]
[1719928118334,1.66146399,150.48,150.39,20.0]
[1719928118963,8.30706399,150.48,150.35,20.0]
[1719928119170,1.66146399,150.48,150.35,20.0]
[1719928119536,6.1005,150.47,150.31,260.0]
[1719928119744,1.66225487,150.46,150.31,260.0]
[1719928119961,1.66228928,150.45,150.31,260.0]
[1719928120342,8.30908928,150.45,150.31,260.0]
[1719928121060,1.66220739,150.44,150.33,100.0]
[1719928121269,1.66220739,150.46,150.35,100.0]
[1719928121467,1.66220739,150.46,150.36,20.0]
[1719928121767,7.76225914,150.47,150.36,20.0]
[1719928122068,6.1005,150.47,150.37,100.0]
[1719928122373,6.1005,150.47,150.38,20.0]
[1719928122661,6.1005,150.47,150.39,100.0]
[1719928122870,6.1005,150.47,150.4,20.0]
[1719928124461,6.1005,150.47,150.39,20.0]
[1719928124835,6.1005,150.47,150.38,20.0]
[1719928125035,6.1005,150.47,150.39,100.0]
[1719928125251,6.1005,150.47,150.4,20.0]
[1719928126248,15.0122,150.5,150.41,100.0]
[1719928126453,15.0122,150.5,150.42,20.0]
[1719928127962,15.0122,150.5,150.43,100.0]
[1719928128270,15.0122,150.5,150.44,20.0]
[1719928130457,15.0122,150.5,150.42,20.0]
[1719928130647,15.0122,150.5,150.4,38.22]
[1719928131158,16.67346244,150.5,150.37,100.0]
[1719928131365,16.67346244,150.5,150.36,45.11822892]
[1719928131560,6.6451,150.49,150.35,115.0122]
[1719928131766,1.6617114,150.48,150.35,115.0122]
[1719928132982,1.6617114,150.48,150.36,20.0]
[1719928133275,1.6617114,150.48,150.36,65.0]
[1719928134187,8.3071114,150.48,150.32,145.11822892]
[1719928135154,1.6617114,150.48,150.32,145.11822892]
[1719928135352,1.6617114,150.48,150.34,100.0]
[1719928135576,1.66179292,150.47,150.36,100.0]
[1719928135765,1.66169268,150.49,150.37,65.0]
[1719928135965,1.66169866,150.48,150.37,20.0]
[1719928136163,16.67387546,150.5,150.38,145.0]
[1719928136367,16.67387546,150.5,150.39,20.0]
[1719928136665,16.67387546,150.5,150.4,45.0]
[1719928136875,23.31837546,150.5,150.41,20.0]
[1719928137067,23.31837546,150.5,150.42,45.0]
[1719928137966,16.67387546,150.5,150.42,45.0]
[1719928139370,1.66146309,150.49,150.42,45.0]
[1719928140057,1.66150769,150.48,150.42,45.0]
[1719928140478,8.30730769,150.48,150.42,45.0]
[1719928140658,6.6458,150.47,150.33,100.0]
[1719928140987,1.66180674,150.46,150.34,20.0]
[1719928141284,15.0122,150.5,150.34,20.0]
[1719928141285,1.66196047,150.45,150.34,20.0]
[1719928141466,1.66168278,150.47,150.34,120.0]
[1719928141665,1.66168278,150.47,150.34,20.0]
[1719928141869,1.66168278,150.47,150.34,100.0]
[1719928142187,1.66168278,150.47,150.35,20.0]
[1719928142363,8.30748278,150.47,150.35,65.0]
[1719928142566,1.66189713,150.46,150.35,65.0]
[1719928142763,1.66189713,150.45,150.35,64.3565941]
[1719928143280,1.66189713,150.45,150.32,45.11822892]
[1719928143462,6.1437,150.44,150.32,38.22]
[1719928143661,1.66220885,150.43,150.28,153.7862949]
[1719928143864,1.6622487,150.42,150.28,253.7862949]
[1719928144082,1.6622487,150.42,150.28,145.11822892]
[1719928144285,16.0304,150.41,150.28,50.33901971]
[1719928144583,1.66258044,150.4,150.28,12.11901971]
[1719928144765,1.66257741,150.39,150.28,12.11901971]
[1719928145012,1.66249439,150.4,150.28,212.11901971]
[1719928147163,1.66232158,150.4,150.32,20.0]
[1719928147483,1.66232158,150.4,150.3,20.0]
[1719928147677,1.66238957,150.39,150.31,45.0]
[1719928147885,1.66238957,150.39,150.32,20.0]
[1719928148087,1.66251489,150.4,150.32,20.0]
[1719928148384,1.66248596,150.39,150.32,20.0]
[1719928148686,1.66248596,150.39,150.31,45.0]
[1719928148892,16.0304,150.41,150.33,45.0]
[1719928149184,16.0304,150.41,150.34,20.0]
[1719928149389,16.0304,150.41,150.35,45.0]
[1719928149567,16.0304,150.41,150.36,20.0]
[1719928149774,6.1437,150.44,150.37,45.0]
[1719928149972,6.1437,150.44,150.38,20.0]
[1719928150174,6.1437,150.44,150.39,45.0]
[1719928150485,6.1437,150.44,150.4,20.0]
[1719928150858,6.1437,150.44,150.39,45.0]
[1719928151368,1.66187594,150.43,150.32,38.22]
[1719928151573,1.66209833,150.42,150.32,138.22]
[1719928151769,6.1437,150.44,150.34,100.0]
[1719928151974,6.1437,150.44,150.34,200.0]
[1719928152186,6.1437,150.44,150.4,45.0]
[1719928152390,6.1437,150.44,150.34,200.0]
[1719928152688,6.1437,150.44,150.36,238.22]
[1719928152892,6.1437,150.44,150.37,20.0]
[1719928153062,16.2539,150.47,150.38,100.0]
[1719928153392,6.2402,150.48,150.4,238.22]
[1719928153556,15.2829,150.52,150.41,20.0]
[1719928153757,15.2829,150.52,150.42,100.0]
[1719928153961,15.2829,150.52,150.43,20.0]
[1719928154798,1.66093455,150.51,150.44,45.0]
[1719928154963,15.2829,150.52,150.45,20.0]
[1719928155284,15.2829,150.52,150.46,45.0]
[1719928157502,1.661041,150.51,150.46,45.0]
[1719928157663,1.661041,150.51,150.45,20.0]
[1719928157865,1.661041,150.51,150.41,20.0]
[1719928158465,8.305141,150.51,150.41,20.0]
[1719928158660,1.661041,150.51,150.4,38.22]
[1719928158867,6.3832,150.5,150.33,5.3861724]